Cogmind - Beta 15 @@@ ROGUE MODE // 2025.05.20 @ 16:49:18 Player: LightKnight Result: Escaped! Performance ------------- Evolutions (9) 4500 Regions Visited (22) 4400 Robots Destroyed (134) 670 Value Destroyed (6496) 6496 Prototype IDs (49) 980 Alien Tech Used (0) 0 Bonus (7614) 7614 TOTAL SCORE: 24660 Bonus ------- High Alert Combat Kills 1240 Follower Combat Kills 2300 Entered DSFs 500 Network Hubs Disabled 200 Aligned with FarCom 300 Built Enhanced Grunts 300 Met R17 at Cetus 500 Win 3000 Friendly Fire -726 Cogmind --------- Core Integrity 1385/1600 Matter 15/300 Energy 23/100 System Corruption 4% Temperature Cool (2) Movement Flying (27) Location To Epsilon Eridani Parts ------- > --- POWER (2) -------- (None) > --- PROPULSION (6) --- Cooled Q-thruster Cooled Q-thruster > --- UTILITY (14) ----- Advanced Weight Redist. System Experimental Optical Array Advanced Signal Interpreter Improved Target Analyzer Advanced Hacking Suite Advanced Hacking Suite Advanced Hacking Suite Advanced Hacking Suite > --- WEAPON (3) ------- (None) > --- INVENTORY (5) ---- Light Quantum Reactor Impulse Thruster Array Advanced Power Amplifier Null Cannon Peak State ------------ > --- POWER ------------ Quantum Reactor > --- PROPULSION ------- Centrium Heavy Treads Centrium Heavy Treads > --- UTILITY ---------- Power Amplifier Advanced Heat Sink Experimental Heat Sink Advanced Cooling System Medium Storage Unit Structural Scanner Experimental Optical Array Long-range Sensor Array Modified TNC Advanced Targeting Computer Improved Target Analyzer Centrium Medium Armor Plating Advanced Hacking Suite > --- WEAPON ----------- Advanced Variable Charge Gun Quantum Rifle Long-range Proton Cannon > --- INVENTORY -------- Improved Surge Thruster Advanced Hacking Suite Advanced Hacking Suite Advanced Hacking Suite Quantum Rifle Firepult Fire Trap [Rating: 141] Favorites ----------- Power Improved Deuterium Engine Engine Improved Deuterium Engine Power Core Improved Fusion Compressor Reactor Quantum Reactor Propulsion Light Treads Treads Light Treads Leg Enhanced Biometal Leg Wheel Armored Wheel Hover Unit Antigrav System Flight Unit Cooled Q-thruster Utility Medium Storage Unit Device Experimental Heat Sink Storage Medium Storage Unit Processor Modified TNC Hackware Advanced Hacking Suite Protection Centrium Medium Armor Plating Weapon Light EM Pulse Cannon Energy Gun Advanced Variable Charge Gun Energy Cannon Light EM Pulse Cannon Ballistic Gun Minigun Ballistic Cannon Enhanced Hardcell Cannon Launcher Rocket Launcher Special Weapon Improved Plasma Cutter Impact Weapon Mace Build | -11 -10 -10 -9 -9 -9 -8 -8 -7 -6 -6 -6 -5 -5 -5 -5 -5 -4 -3 -3 -2 -2 -1 ------- Run | Yrd Mat Min Mat Min Exi Min Mat Fac Fac Was Fac Fac Ext Cet Arc Hub Fac Res DSF Res Tes Acc Slots Evolved 18 | . . . 2 . . . 2 2 2 . . 2 . . . . 2 2 . 2 . 2 Power 1 | . . . . . . . . . . . . . . . . . . . . . . 1 Propulsion 4 | . . . . . . . 1 . . . . 1 . . . . . . . 1 . 1 Utility 12 | . . . 2 . . . . 2 2 . . 1 . . . . 2 2 . 1 . . Weapon 1 | . . . . . . . 1 . . . . . . . . . . . . . . . Parts Attached 132 | 1 9 . 2 5 2 2 12 12 4 5 . 14 11 11 3 8 6 . 10 8 7 . Power 10 | . 2 . . . 1 . 2 . . 1 . . . 2 . 1 . . . . 1 . Engine 7 | . 2 . . . 1 . 2 . . 1 . . . 1 . . . . . . . . Core 1 | . . . . . . . . . . . . . . . . . . . . . 1 . Reactor 2 | . . . . . . . . . . . . . . 1 . 1 . . . . . . Propulsion 28 | 1 2 . . . 1 . 2 3 . 1 . 3 3 1 2 2 1 . 3 2 1 . Treads 16 | . 2 . . . 1 . 2 3 . 1 . 1 1 1 2 2 . . . . . . Leg 4 | 1 . . . . . . . . . . . . . . . . . . 3 . . . Wheel 3 | . . . . . . . . . . . . . 2 . . . 1 . . . . . Hover 2 | . . . . . . . . . . . . 2 . . . . . . . . . . Flight 3 | . . . . . . . . . . . . . . . . . . . . 2 1 . Utility 55 | . 3 . . 3 . 1 2 5 2 2 . 10 3 5 . 3 4 . 3 6 3 . Device 26 | . . . . 1 . 1 1 3 . 1 . 8 1 1 . 1 2 . 2 1 3 . Storage 3 | . 2 . . 1 . . . . . . . . . . . . . . . . . . Processor 9 | . 1 . . . . . 1 2 1 . . 1 . . . . 2 . . 1 . . Hackware 5 | . . . . . . . . . . . . . . . . 1 . . . 4 . . Protection 12 | . . . . 1 . . . . 1 1 . 1 2 4 . 1 . . 1 . . . Artifact . | . . . . . . . . . . . . . . . . . . . . . . . Weapon 39 | . 2 . 2 2 . 1 6 4 2 1 . 1 5 3 1 2 1 . 4 . 2 . Energy Gun 15 | . . . . . . . 5 1 . . . 1 2 2 1 1 . . 1 . 1 . Energy Cannon 14 | . 2 . 1 . . 1 . 3 2 1 . . 2 . . . 1 . . . 1 . Ballistic Gun 2 | . . . . . . . 1 . . . . . . 1 . . . . . . . . Ballistic Cannon 3 | . . . . . . . . . . . . . . . . . . . 3 . . . Launcher 2 | . . . . 2 . . . . . . . . . . . . . . . . . . Special Weapon 2 | . . . . . . . . . . . . . 1 . . 1 . . . . . . Impact Weapon 1 | . . . 1 . . . . . . . . . . . . . . . . . . . Slashing Weapon . | . . . . . . . . . . . . . . . . . . . . . . . Piercing Weapon . | . . . . . . . . . . . . . . . . . . . . . . . Special Melee Weapon . | . . . . . . . . . . . . . . . . . . . . . . . Unidentified Prototypes 15 | . . . . . . . 1 . . . . 2 . 6 . . 1 . 1 1 3 . Corrupted Parts 1 | . . . . . . . . . . . . . . . . 1 . . . . . . System Corruption 11 | . . . . . . . . . . . . . . . . 11 . . . . . . Parts Lost 31 | . . . 2 . . . . . . . . 2 3 1 . 7 . . 12 . 3 1 Power 3 | . . . . . . . . . . . . . . 1 . 1 . . 1 . . . Propulsion 6 | . . . . . . . . . . . . . 3 . . 2 . . . . 1 . Utility 17 | . . . 1 . . . . . . . . 2 . . . 2 . . 9 . 2 1 Weapon 5 | . . . 1 . . . . . . . . . . . . 2 . . 2 . . . Highest Loss Streak 6 | . . . 1 . . . . . . . . 2 2 1 . 5 . . 6 . 3 1 To Critical Strikes . | . . . . . . . . . . . . . . . . . . . . . . . Average Backups 7 | 6 7 8 7 8 9 9 8 8 8 9 8 8 9 8 8 8 4 4 5 3 4 4 Power 1 | 1 1 2 2 2 3 3 2 1 1 . . . 1 . 1 . . . . . . . Propulsion 1 | 4 3 2 2 2 1 1 . 2 1 1 1 1 . . 1 1 1 2 1 . . . Utility 1 | . . 1 1 1 1 1 3 1 1 2 3 2 2 2 2 2 . . 3 1 3 1 Weapon 2 | 1 1 3 2 3 2 3 1 2 2 3 2 2 4 2 2 2 1 2 . 1 1 1 Tool/Special . | . . . . . . . . . . . . . . . . . . . . . . . Unused Backups 25 | . 10 . . . 1 . 4 1 . 3 . 1 . 1 1 . . . . . . 3 Power 9 | . 3 . . . . . 4 . . . . . . . . . . . . . . 2 Propulsion 7 | . 3 . . . . . . 1 . 2 . . . . . . . . . . . 1 Utility 4 | . 1 . . . 1 . . . . 1 . . . 1 . . . . . . . . Weapon 4 | . 3 . . . . . . . . . . . . . 1 . . . . . . . Tool/Special 1 | . . . . . . . . . . . . 1 . . . . . . . . . . Average Slot Usage (%) 85 | . 91 100 73 73 88 99 99 99 99 77 72 73 88 90 90 84 86 89 75 54 55 43 Engine 5 | . 14 14 11 11 11 11 9 7 6 6 6 5 5 . . . . . . . . . Reactor 1 | . . . . . . . . . . . . . . 4 5 4 5 4 . . . . Treads 15 | . 18 28 22 22 22 22 26 23 20 16 13 10 5 5 11 16 9 4 1 . . . Device 14 | . . . . 2 11 21 11 23 26 14 6 13 23 17 11 17 24 27 18 6 4 7 Storage 7 | . 15 14 11 11 11 11 9 7 6 6 6 5 5 5 5 5 5 4 4 . . . Processor 10 | . 4 14 8 . . . 8 14 13 13 13 12 17 13 11 11 14 19 18 14 16 12 Hackware 1 | . . . . . . . . . . . . . . . . 1 5 4 4 19 19 16 Protection 5 | . . . . 4 11 11 7 . 5 5 6 3 5 13 23 9 5 4 2 . . . Energy Gun 5 | . 4 . . . . . 9 9 . . . . 5 10 14 8 13 9 6 . . . Energy Cannon 10 | . 19 28 19 11 11 22 10 12 19 13 19 16 9 . . 3 1 4 . . . . Ballistic Gun 1 | . 4 . . . . . 7 . . . . . . 4 2 . . . . . . . Launcher 1 | . . . . 10 11 . . . . . . . . . . . . . . . . . Peak Build Rating 141 | 6 11 11 11 15 19 22 37 52 61 89 78 94 92 126 125 125 132 130 141 111 101 81 Average Rating 64 | 5 9 11 10 11 17 21 31 50 59 80 77 88 77 108 124 114 124 129 112 84 85 73 On Entrance 62 | 6 6 11 11 10 15 19 22 36 52 61 89 77 89 79 125 125 113 121 130 89 72 81 Naked Turns . | . . . . . . . . . . . . . . . . . . . . . . . Heaviest Build 99 | 11 26 23 23 34 34 35 38 46 57 99 92 93 64 77 77 89 70 64 64 33 21 8 Greatest Support 160 | 20 40 40 40 40 40 40 60 84 84 98 98 140 70 80 136 160 160 16 160 60 26 20 Greatest Overweight (x) 5 | . 1 . . . . . . . . 1 . . 5 2 2 . 3 3 3 1 1 1 Average Overweight (x) . | . . . . . . . . . . . . . 3 1 . . . 3 . . . . Largest Inventory Capacity 10 | 8 8 8 8 10 10 10 10 10 10 10 10 10 10 10 10 10 10 10 10 5 5 5 Average Capacity 9 | 8 8 8 8 8 10 10 10 10 10 10 10 10 10 10 10 10 10 10 10 5 5 5 Most Carried 10 | 7 8 8 8 9 10 10 10 10 10 10 10 10 10 10 10 10 9 7 10 5 5 5 Average Carried 8 | 6 7 8 7 8 9 10 9 9 9 9 9 9 9 9 10 9 5 6 8 3 4 4 Final Capacity 10 | 8 8 8 8 10 10 10 10 10 10 10 10 10 10 10 10 10 10 10 5 5 5 5 Final Carried 10 | 6 8 8 7 9 10 10 10 10 10 10 10 10 10 10 10 5 8 6 5 5 5 5 Class Distribution -------------------- 25% | Mutant 24% | Scavenger-Tank 20% | Skirmisher 9% | Tank 5% | Scavenger-Gunner Dominant Class ---------------- Mutant | -10/Materials Mutant | -10/Mines Mutant | -9/Materials Mutant | -9/Mines Mutant | -9/Exiles Mutant | -8/Mines Skirmisher | -8/Materials Skirmisher | -7/Factory Skirmisher | -6/Factory Pyromaniac-Tank | -6/Waste Tank | -6/Factory Tank | -5/Factory Commander-Tank | -5/Extension Scavenger-Tank | -5/Cetus Scavenger-Tank | -5/Archives Scavenger-Tank | -5/Hub_04(d) Scavenger-Tank | -4/Factory Scavenger-Tank | -3/Research Scavenger-Mutant | -3/DSF Wizard-Sprinter | -2/Research Wizard-Sprinter | -2/Testing Hacker-Scout | -1/Access Resources | -11 -10 -10 -9 -9 -9 -8 -8 -7 -6 -6 -6 -5 -5 -5 -5 -5 -4 -3 -3 -2 -2 -1 ----------- Run | Yrd Mat Min Mat Min Exi Min Mat Fac Fac Was Fac Fac Ext Cet Arc Hub Fac Res DSF Res Tes Acc Matter Collected 2150 | 220 93 . 20 83 10 30 288 140 . 105 . 258 215 194 54 208 149 . 83 . . . Remotely . | . . . . . . . . . . . . . . . . . . . . . . . Salvage Created 8238 | . 63 78 479 110 . 169 757 369 . 1516 . 1225 495 147 . 2498 68 . 264 . . . Parts 265 | . 8 7 26 5 . 5 30 13 . 10 . 58 20 6 . 63 . . 14 . . . Haulers Intercepted 5 | . . . 1 . . . 1 . . . . 1 . . . 2 . . . . . . Recyclers Shooed 5 | . . . 1 . . . 1 . . . . . 3 . . . . . . . . . Parts Field Recycled . | . . . . . . . . . . . . . . . . . . . . . . . Retrieved Matter . | . . . . . . . . . . . . . . . . . . . . . . . Parts Self-Destructed . | . . . . . . . . . . . . . . . . . . . . . . . Prevented . | . . . . . . . . . . . . . . . . . . . . . . . Kills | -11 -10 -10 -9 -9 -9 -8 -8 -7 -6 -6 -6 -5 -5 -5 -5 -5 -4 -3 -3 -2 -2 -1 ------- Run | Yrd Mat Min Mat Min Exi Min Mat Fac Fac Was Fac Fac Ext Cet Arc Hub Fac Res DSF Res Tes Acc Combat Hostiles Destroyed 105 | . 1 2 7 5 . 3 11 8 . 6 . 17 7 1 . 33 1 . 3 . . . Melee 1 | . . . 1 . . . . . . . . . . . . . . . . . . . Guns 14 | . 1 . . . . . 5 2 . . . . 1 . . 3 . . 2 . . . Cannons 34 | . . 2 4 1 . 2 3 5 . . . 12 4 . . . . . 1 . . . AOE 18 | . . . . 4 . . 2 . . 1 . 3 . . . 8 . . . . . . Classes Destroyed 21 | . 2 1 4 . . . 4 1 . 1 . 2 2 . . 3 . . 1 . . . Worker 6 | . 1 1 1 . . . . . . . . . . . . 3 . . . . . . Builder 8 | . . . 3 . . . . . . . . 3 . . . 2 . . . . . . Tunneler 1 | . . . . . . . . . . . . . 1 . . . . . . . . . Hauler 5 | . . . 1 . . . 1 . . . . 1 . . . 2 . . . . . . Recycler 1 | . . . . . . . . . . . . 1 . . . . . . . . . . Operator 1 | . . . . . . . . . . . . 1 . . . . . . . . . . Watcher 6 | . . . . . . . 3 . . . . 1 1 . . 1 . . . . . . Swarmer 9 | . . 1 . 3 . . . 3 . . . 2 . . . . . . . . . . Cutter 1 | . . . . . . . . . . . . . . . . 1 . . . . . . Grunt 37 | . 1 1 5 2 . 2 5 . . . . 4 2 . . 14 1 . . . . . Brawler 3 | . . . 1 . . 1 . . . . . 1 . . . . . . . . . . Duelist 1 | . . . 1 . . . . . . . . . . . . . . . . . . . Protector 2 | . . . . . . . . . . . . . . . . 2 . . . . . . Sentry 14 | . . . . . . . 3 3 . . . 2 2 . . 4 . . . . . . Demolisher 1 | . . . . . . . . . . . . . . . . 1 . . . . . . Specialist 6 | . . . . . . . 2 . . . . . . . . 2 . . 2 . . . Hunter 7 | . . . . . . . 1 . . . . 2 2 . . 2 . . . . . . Programmer 10 | . . . . . . . . 2 . . . 6 . . . 2 . . . . . . Heavy 1 | . . . . . . . . . . . . . . . . . . . 1 . . . Behemoth 1 | . . . . . . . . . . . . . 1 . . . . . . . . . Compactor 6 | . . . . . . . . . . 6 . . . . . . . . . . . . Cetus Guard 1 | . . . . . . . . . . . . . . 1 . . . . . . . . Enhanced Grunt 1 | . . . . . . . . . . . . . . . . 1 . . . . . . Lightning 4 | . . . . . . . . . . . . . . . . 4 . . . . . . Best Kill Streak 14 | . 1 2 4 3 . 3 3 3 . 2 . 8 3 1 . 14 1 . 3 . . . Combat Bots Only 13 | . 1 2 4 3 . 3 3 3 . 2 . 5 2 1 . 13 1 . 3 . . . Max Kills in Single Turn 6 | . 1 1 2 3 . 1 1 1 . 1 . 6 2 1 . 3 1 . 1 . . . Gunslinging . | . . . . . . . . . . . . . . . . . . . . . . . Exploded 3 | . . . . 3 . . 1 . . 1 . 3 . . . 2 . . . . . . Melee 1 | . . . 1 . . . . . . . . . . . . . . . . . . . Uniques/NPCs Destroyed 1 | . . . . . . . . . . . . . . 1 . . . . . . . . A7 (-5/Cetus) Combat | -11 -10 -10 -9 -9 -9 -8 -8 -7 -6 -6 -6 -5 -5 -5 -5 -5 -4 -3 -3 -2 -2 -1 -------- Run | Yrd Mat Min Mat Min Exi Min Mat Fac Fac Was Fac Fac Ext Cet Arc Hub Fac Res DSF Res Tes Acc Hostile Shots Fired 847 | . 2 3 45 1 . 5 41 92 . . . 131 68 19 5 175 16 . 175 6 29 34 Missed 249 | . 2 1 16 1 . 2 12 35 . . . 26 17 4 1 47 4 . 43 4 16 18 Hits 598 | . . 2 29 . . 3 29 57 . . . 105 51 15 4 128 12 . 132 2 13 16 Melee 8 | . . . 4 . . 2 . . . . . 1 . . . 1 . . . . . . Projectile 590 | . . 2 25 . . 1 29 57 . . . 104 51 15 4 127 12 . 132 2 13 16 AOE 4 | . . . . . . . . . . . . . . . . 4 . . . . . . Critical Strikes 29 | . . . . . . 1 1 2 . . . 4 . 3 . 8 1 . 7 . . 2 Actively Blocked 2 | . . . . . . . . . . . . . . . . . . . 2 . . . Part Disruptions 2 | . . . . . . . . . . . . . . . . 1 . . 1 . . . Damage Taken 12157 | . . 53 432 54 . 67 450 535 . 19 . 1885 991 305 128 3749 225 . 2546 50 303 365 Core 1594 | . . 11 38 . . . 77 125 . . . 52 89 . 22 580 16 . 246 30 93 215 Absorbed by Shields 105 | . . . . . . . . . . . . . . 105 . . . . . . . . Reduced by Siege Mode 62 | . . . . . . . . . . . . . . . . . . . 62 . . . Redirected to Shielding 108 | . . . . . . . . . . . . . . . . . . . 108 . . . Ignored by Resistances 332 | . . . . . . . . . . . . 332 . . . . . . . . . . Regen/Repaired (Parts) 244 | . . . . . . . 94 . . . . . . . 22 128 . . . . . . Core Remaining (%) 84 | 100 . 95 . . . 90 86 82 . . 100 . . . . 25 98 . 81 . 91 86 Volleys Fired 299 | . 4 3 13 4 . 5 42 21 1 11 7 51 35 8 6 63 4 . 12 2 7 . Largest 3 | . 2 2 2 2 . 2 3 3 1 2 1 3 3 3 3 3 3 . 3 1 1 . Hottest 396 | . 112 112 112 89 . 112 165 199 90 340 90 250 340 396 195 344 330 . 255 58 58 . Shots Fired 606 | . 8 6 24 7 . 10 103 60 1 15 6 137 73 16 8 89 7 . 27 2 7 . Gun 219 | . 6 . . . . . 67 28 . . . 7 14 9 8 54 5 . 21 . . . Cannon 378 | . 2 6 24 4 . 10 36 32 1 15 6 130 58 7 . 30 2 . 6 2 7 . Launcher 3 | . . . . 3 . . . . . . . . . . . . . . . . . . Special 6 | . . . . . . . . . . . . . 1 . . 5 . . . . . . Kinetic 56 | . 3 . . . . . 37 . . . . . . 1 6 . . . . 2 7 . Thermal 407 | . . . . . . . 9 56 1 15 6 119 73 15 2 84 6 . 21 . . . Explosive 3 | . . . . 3 . . . . . . . . . . . . . . . . . . Electromagnetic 135 | . 5 6 24 4 . 10 57 4 . . . 18 . . . . 1 . 6 . . . Robot Hit Streak 16 | . 3 3 12 16 . 8 11 15 . 10 . 14 6 4 2 8 3 . 9 . 1 . Robot Miss Streak 13 | . 1 1 3 . . 1 4 1 . 3 . 5 6 2 2 13 2 . 1 . 2 . Penetration Max . | . . . . . . . . . . . . . . . . . . . . . . . Secondary Targets . | . . . . . . . . . . . . . . . . . . . . . . . Shots Hit Robots 372 | . 3 4 21 4 . 8 67 37 . 11 . 88 36 9 4 55 3 . 21 . 1 . Core Hits 249 | . 3 3 12 6 . 3 26 14 . 7 . 34 16 5 . 108 6 . 6 . . . Critical Kills 4 | . . . . . . . 1 . . . . 2 1 . . . . . . . . . Critical Parts Destroyed 2 | . . . 2 . . . . . . . . . . . . . . . . . . . Critical Strikes 10 | . . . 2 . . . 1 1 . . . 3 2 1 . . . . . . . . Burn 2 | . . . . . . . . 1 . . . . . 1 . . . . . . . . Meltdown 3 | . . . . . . . . . . . . 2 1 . . . . . . . . . Destroy 1 | . . . . . . . 1 . . . . . . . . . . . . . . . Corrupt 1 | . . . . . . . . . . . . 1 . . . . . . . . . . Smash 2 | . . . 2 . . . . . . . . . . . . . . . . . . . Sever 1 | . . . . . . . . . . . . . 1 . . . . . . . . . Melee Attacks 11 | . . . 11 . . . . . . . . . . . . . . . . . . . Impact 11 | . . . 11 . . . . . . . . . . . . . . . . . . . Slashing . | . . . . . . . . . . . . . . . . . . . . . . . Piercing . | . . . . . . . . . . . . . . . . . . . . . . . Sneak Attacks 1 | . . . 1 . . . . . . . . . . . . . . . . . . . Combat Hostiles . | . . . . . . . . . . . . . . . . . . . . . . . Follow-up Attacks . | . . . . . . . . . . . . . . . . . . . . . . . Damage Inflicted 15740 | . 67 115 613 339 . 165 1579 925 . 817 . 3776 1292 358 137 4477 417 . 563 . 83 17 Guns 3194 | . 19 . . . . . 780 411 . . . 112 229 184 137 823 62 . 437 . . . Cannons 7088 | . 48 91 356 64 . 165 545 514 . 324 . 2744 948 174 . 815 91 . 126 . 83 . Explosions 5147 | . . 24 . 275 . . 254 . . 493 . 920 90 . . 2839 252 . . . . . Melee 254 | . . . 254 . . . . . . . . . . . . . . . . . . . Ramming 40 | . . . 3 . . . . . . . . . 8 . . . 12 . . . . 17 Kinetic 552 | . 6 . . . . . 351 . . . . . . . 112 . . . . . 83 . Thermal 12398 | . . 24 . . . . 388 871 . 817 . 3343 1284 358 25 4477 374 . 437 . . . Explosive 313 | . . . . 275 . . . . . . . 38 . . . . . . . . . . Electromagnetic 2183 | . 61 91 356 64 . 165 840 54 . . . 395 . . . . 31 . 126 . . . Impact 254 | . . . 254 . . . . . . . . . . . . . . . . . . . Slashing . | . . . . . . . . . . . . . . . . . . . . . . . Piercing . | . . . . . . . . . . . . . . . . . . . . . . . Highest Corruption 32 | . . . . . . . . 1 . 14 14 7 7 7 7 32 . . 9 . 6 4 Average Corruption 7 | . . . . . . . . 1 . 11 14 5 7 7 7 8 . . 5 . 5 4 Corruption Purged . | . . . . . . . . . . . . . . . . . . . . . . . Corruption Blocked . | . . . . . . . . . . . . . . . . . . . . . . . Effects 148 | . . . . . . . . . . 12 8 38 35 15 4 31 . . 1 . 2 2 Message Errors 34 | . . . . . . . . . . 3 2 7 7 4 1 8 . . 1 . . 1 Matter Fused 34 | . . . . . . . . . . 1 2 9 9 4 1 8 . . . . . . Heat Flow Errors 15 | . . . . . . . . . . 1 1 5 5 . 1 2 . . . . . . Energy Discharges 19 | . . . . . . . . . . 1 1 6 5 2 . 2 . . . . 1 1 Parts Rejected 2 | . . . . . . . . . . . . 1 . 1 . . . . . . . . Data Loss (minor) 21 | . . . . . . . . . . 1 1 6 4 3 1 4 . . . . 1 . Data Loss (major) 8 | . . . . . . . . . . 3 . . 2 1 . 2 . . . . . . Misfires 3 | . . . . . . . . . . 1 . 1 . . . 1 . . . . . . Alerts 4 | . . . . . . . . . . 1 . . 2 . . 1 . . . . . . Misdirections 1 | . . . . . . . . . . . . . . . . 1 . . . . . . Weapon Failures 7 | . . . . . . . . . . . 1 3 1 . . 2 . . . . . . Overload Shots 2 | . . . . . . . . . . . . . . 1 . . 1 . . . . . Effects 1 | . . . . . . . . . . . . . . . . . 1 . . . . . Energy Bleed 1 | . . . . . . . . . . . . . . . . . 1 . . . . . Overflow Damage 327 | . . . 144 20 . . 6 7 . . . 71 54 . . 13 . . 3 . 9 . Projectiles 120 | . . . 5 . . . 6 7 . . . 37 52 . . 1 . . 3 . 9 . Explosions 68 | . . . . 20 . . . . . . . 34 2 . . 12 . . . . . . Melee 139 | . . . 139 . . . . . . . . . . . . . . . . . . . Knockbacks 5 | . . . 2 . . . . . . . . . 1 . . . . . . . 1 1 Impact 4 | . . . 2 . . . . . . . . . 1 . . . . . . . . 1 Kinetic 1 | . . . . . . . . . . . . . . . . . . . . . 1 . Secondary . | . . . . . . . . . . . . . . . . . . . . . . . Self-Inflicted Damage 536 | . . 37 . 55 . . 19 . . 19 . 253 22 . . 123 . . . . . 8 Shots 22 | . . 1 . 2 . . 1 . . 3 . 3 1 . . 11 . . . . . . Rammed 8 | . . . 1 . . . . . . . . . 2 . . . 2 . . . . 3 Targets Rammed 8 | . . . 1 . . . . . . . . . 2 . . . 2 . . . . 3 Kicked . | . . . . . . . . . . . . . . . . . . . . . . . Crushed . | . . . . . . . . . . . . . . . . . . . . . . . Highest Temperature 762 | . 63 75 240 90 . 117 195 . . 302 284 493 147 60 215 762 585 . 28 . 94 . Average Temperature 117 | . 23 35 83 39 . 70 64 . . 121 143 143 72 43 141 158 316 . 9 . 43 . Received Heat Transfer 1861 | . . 6 168 . . 9 171 102 . . . 171 171 18 18 420 64 . 534 . . 9 Effects 21 | . . . . . . . . . . . . 6 . . . 15 . . . . . . Shutdowns 4 | . . . . . . . . . . . . 2 . . . 2 . . . . . . Energy Bleed 2 | . . . . . . . . . . . . 1 . . . 1 . . . . . . Interference 4 | . . . . . . . . . . . . 1 . . . 3 . . . . . . Matter Decay 1 | . . . . . . . . . . . . . . . . 1 . . . . . . Short Circuit 3 | . . . . . . . . . . . . 2 . . . 1 . . . . . . Damage (minor) 1 | . . . . . . . . . . . . . . . . 1 . . . . . . Damage (major) 4 | . . . . . . . . . . . . . . . . 4 . . . . . . Damage (core) 2 | . . . . . . . . . . . . . . . . 2 . . . . . . Siege Activations 2 | . . . . . . . . . . . . . . . . 1 . . 1 . . . Total Turns 33 | . . . . . . . . . . . . . . . . 10 . . 23 . . . Longest Duration 23 | . . . . . . . . . . . . . . . . 10 . . 23 . . . Martial Activations . | . . . . . . . . . . . . . . . . . . . . . . . Shielding Activations . | . . . . . . . . . . . . . . . . . . . . . . . Robots Disrupted . | . . . . . . . . . . . . . . . . . . . . . . . Combat Hostiles . | . . . . . . . . . . . . . . . . . . . . . . . Robots Corrupted 6 | . . . 3 . . 1 1 . . . . 1 . . . . . . . . . . Combat Hostiles 5 | . . . 2 . . 1 1 . . . . 1 . . . . . . . . . . Parts Fried 13 | . . . 7 . . . 4 . . . . 2 . . . . . . . . . . Impact Corruptions 5 | . . . 5 . . . . . . . . . . . . . . . . . . . Robots Melted 36 | . . . . . . . . 1 . 5 . 2 2 1 . 24 1 . . . . . Combat Hostiles 33 | . . . . . . . . 1 . 5 . 1 2 1 . 22 1 . . . . . Parts Melted 134 | . . . . . . . 1 8 . 27 . 9 5 1 . 82 1 . . . . . Heat Transferred 34006 | . . . . . . . 459 1406 . 4080 . 3837 2488 495 37 19098 1514 . 592 . . . Parts Sabotaged . | . . . . . . . . . . . . . . . . . . . . . . . Parts Stolen . | . . . . . . . . . . . . . . . . . . . . . . . Parts Stripped . | . . . . . . . . . . . . . . . . . . . . . . . Power Chain Reactions 4 | . . 1 . . . . 3 . . . . . . . . . . . . . . . Alert | -11 -10 -10 -9 -9 -9 -8 -8 -7 -6 -6 -6 -5 -5 -5 -5 -5 -4 -3 -3 -2 -2 -1 ------- Run | Yrd Mat Min Mat Min Exi Min Mat Fac Fac Was Fac Fac Ext Cet Arc Hub Fac Res DSF Res Tes Acc Maximum Alert Level 4 | . . . . . . . . . . . . 2 2 1 1 4 3 1 1 . . . Low Security (%) 65 | 100 100 100 100 100 . 100 100 100 100 100 100 69 . 3 30 9 . 8 83 100 100 100 Level 1 14 | . . . . . . . . . . . . . 70 96 69 1 . 91 16 . . . Level 2 14 | . . . . . . . . . . . . 30 29 . . 30 92 . . . . . Level 3 2 | . . . . . . . . . . . . . . . . 28 6 . . . . . Level 4 2 | . . . . . . . . . . . . . . . . 30 . . . . . . Level 5 . | . . . . . . . . . . . . . . . . . . . . . . . High Security . | . . . . . . . . . . . . . . . . . . . . . . . Max Security . | . . . . . . . . . . . . . . . . . . . . . . . Peak Influence 1450 | . 30 45 167 89 . 70 176 85 15 1 2 545 472 361 247 1450 710 242 259 131 144 125 Initial 710 | . . . . 63 . . . 31 . . . . 262 200 91 72 710 242 144 131 17 95 Average 202 | . 1 8 50 28 . 7 64 22 1 . . 174 352 275 196 822 559 219 184 25 56 102 Influence Increases 6417 | . 35 66 272 169 . 70 383 266 15 3 4 902 871 300 206 2020 196 . 230 57 232 120 Destroy 0b10 Robot/C 2780 | . 20 40 140 100 . 60 220 160 . . . 340 320 160 80 960 120 . 60 . . . Destroy 0b10 Robot/NC 210 | . 5 5 25 . . . 20 . . . . 35 35 10 5 65 5 . . . . . Destroy Leader 652 | . 10 . 42 20 . 10 68 60 . . . 94 56 . . 250 32 . 10 . . . Allied During Kill 878 | . . . . 8 . . . . . . . . 283 109 85 356 37 . . . . . Trap Triggered on 0b10 70 | . . . . . . . . . . . . . . . . . . . 70 . . . Successful Hack 151 | . . . 5 . . . 11 14 . . . . 57 . . 27 . . . 6 31 . Disable Machine 525 | . . . . 15 . . 30 30 15 . . 105 60 . 30 180 . . 15 . 45 . Anti-Garrison Action 150 | . . . . . . . . . . . . 150 . . . . . . . . . . Destroy Structure 416 | . . 6 . 26 . . 19 2 . 3 4 148 60 6 6 122 2 . . 6 6 . Partial Spotted 75 | . . . . . . . . . . . . 15 . . . 30 . . . . 15 15 Lose Combat Pursuer 510 | . . 15 60 . . . 15 . . . . 15 . 15 . 30 . . 75 45 135 105 Influence Decreases 6312 | . 35 66 110 314 17 70 313 336 15 3 4 365 1049 431 227 777 1184 270 188 260 104 174 Entered New Map 2050 | . . . . 99 17 . . 39 . . . . 275 159 137 135 740 220 48 103 14 64 Time Decay 3105 | . 35 66 90 215 . 70 313 297 15 3 4 345 464 222 50 392 294 50 . 20 60 100 Lost Part 310 | . . . 20 . . . . . . . . 20 30 10 . 70 . . 120 . 30 10 Lost Ally 560 | . . . . . . . . . . . . . 280 40 40 180 . . 20 . . . Purge Threat 287 | . . . . . . . . . . . . . . . . . 150 . . 137 . . Squads Dispatched 53 | . 1 . 1 . . . 2 2 . . 2 12 3 . . 19 4 . 2 . 4 1 Investigation 5 | . . . 1 . . . 1 . . . 1 . . . . 2 . . . . . . Extermination 9 | . . . . . . . . 2 . . . 2 . . . 3 . . . . 1 1 Reinforcement 19 | . 1 . . . . . 1 . . . 1 2 3 . . 7 . . 2 . 2 . Assault 5 | . . . . . . . . . . . . 2 . . . 1 1 . . . 1 . Garrison 15 | . . . . . . . . . . . . 6 . . . 6 3 . . . . . Intercept . | . . . . . . . . . . . . . . . . . . . . . . . Searches Triggered . | . . . . . . . . . . . . . . . . . . . . . . . Construction Impeded 4 | . . . . . . . . . . . . 1 2 . . 1 . . . . . . Haulers Reinforced 2 | . . . . . . . . . . . . . . . . 2 . . . . . . Active Scanning Responses . | . . . . . . . . . . . . . . . . . . . . . . . Cargo Convoy Interrupts . | . . . . . . . . . . . . . . . . . . . . . . . Stealth | -11 -10 -10 -9 -9 -9 -8 -8 -7 -6 -6 -6 -5 -5 -5 -5 -5 -4 -3 -3 -2 -2 -1 --------- Run | Yrd Mat Min Mat Min Exi Min Mat Fac Fac Was Fac Fac Ext Cet Arc Hub Fac Res DSF Res Tes Acc Distress Signals 17 | . . . 2 . . . 2 . . . . 1 2 2 . 4 . . . 1 2 1 Communications Jammed . | . . . . . . . . . . . . . . . . . . . . . . . Distress Signals . | . . . . . . . . . . . . . . . . . . . . . . . Times Spotted 260 | . 5 6 14 5 . 3 19 8 1 5 . 24 21 11 6 65 12 . 19 5 17 14 Peak Tracking Total 9 | . 2 3 4 3 . 3 3 3 1 4 1 5 4 5 2 9 5 . 9 6 9 7 Tactical Retreats 21 | . . 1 2 . . . 1 . . . . 1 . 1 . 1 . . 4 2 4 4 Traps | -11 -10 -10 -9 -9 -9 -8 -8 -7 -6 -6 -6 -5 -5 -5 -5 -5 -4 -3 -3 -2 -2 -1 ------- Run | Yrd Mat Min Mat Min Exi Min Mat Fac Fac Was Fac Fac Ext Cet Arc Hub Fac Res DSF Res Tes Acc Traps Triggered 11 | . . . 1 . . . . . 1 . 1 2 4 . . 1 . . . . . 1 Indirectly . | . . . . . . . . . . . . . . . . . . . . . . . Trap Hack Attempts . | . . . . . . . . . . . . . . . . . . . . . . . Triggered . | . . . . . . . . . . . . . . . . . . . . . . . Disarmed . | . . . . . . . . . . . . . . . . . . . . . . . Reprogrammed . | . . . . . . . . . . . . . . . . . . . . . . . Reused 7 | . . . . . . . . . . . . . . . . . . . 7 . . . Traps Extracted . | . . . . . . . . . . . . . . . . . . . . . . . Installed 9 | . . . . . . . . . . . . . . . . . . . 9 . . . Triggered 7 | . . . . . . . . . . . . . . . . . . . 7 . . . Most Traps Carried 5 | . . . . . . . . . . . . . . . . . . . 5 . . . Machines | -11 -10 -10 -9 -9 -9 -8 -8 -7 -6 -6 -6 -5 -5 -5 -5 -5 -4 -3 -3 -2 -2 -1 ---------- Run | Yrd Mat Min Mat Min Exi Min Mat Fac Fac Was Fac Fac Ext Cet Arc Hub Fac Res DSF Res Tes Acc Machines Disabled 37 | . . . . 1 . . 2 2 1 . . 8 5 . 2 12 . . 1 . 3 . Max in Single Turn 3 | . . . . 1 . . 1 1 1 . . 3 1 . 1 2 . . 1 . 1 . Garrison Access 4 | . . . . . . . 1 1 . . . 1 . . . . . . . . . 1 Network Hub 1 | . . . . . . . . . . . . . . . . 1 . . . . . . Machines Repaired . | . . . . . . . . . . . . . . . . . . . . . . . Machines Dismantled 4 | . . . . . . . . . . . . . 3 . . 1 . . . . . . Machines Sabotaged . | . . . . . . . . . . . . . . . . . . . . . . . Overloaded Fab Kills . | . . . . . . . . . . . . . . . . . . . . . . . Hacking | -11 -10 -10 -9 -9 -9 -8 -8 -7 -6 -6 -6 -5 -5 -5 -5 -5 -4 -3 -3 -2 -2 -1 --------- Run | Yrd Mat Min Mat Min Exi Min Mat Fac Fac Was Fac Fac Ext Cet Arc Hub Fac Res DSF Res Tes Acc Machines Accessed 47 | . 1 . 2 . 2 . 7 3 2 . . 2 8 . . 9 2 2 . 1 3 3 Terminals 37 | . 1 . 1 . . . 5 2 1 . . 2 8 . . 8 2 1 . 1 3 2 Fabricators 1 | . . . . . . . . . 1 . . . . . . . . . . . . . Repair Stations 2 | . . . . . . . 1 . . . . . . . . . . 1 . . . . Recycling Units . | . . . . . . . . . . . . . . . . . . . . . . . Scanalyzers 1 | . . . 1 . . . . . . . . . . . . . . . . . . . Garrison Access 4 | . . . . . . . 1 1 . . . . . . . 1 . . . . . 1 Total Hacks 118 | . 3 . 5 . 24 . 16 7 4 . . 3 12 . . 16 5 5 . 4 8 6 Successful 69 | . . . 4 . 24 . 9 3 1 . . . 6 . . 6 1 1 . 4 6 4 Failed 49 | . 3 . 1 . . . 7 4 3 . . 3 6 . . 10 4 4 . . 2 2 Catastrophic 11 | . . . 1 . . . 1 1 1 . . 1 2 . . 3 . 1 . . . . Database Lockouts . | . . . . . . . . . . . . . . . . . . . . . . . Manual 31 | . 3 . 1 . 1 . 7 3 1 . . 2 1 1 . 7 1 . . . 3 . Terminals 77 | . 3 . 2 . . . 13 6 1 . . 3 12 . . 14 5 2 . 4 8 4 Fabricators 3 | . . . . . . . . . 3 . . . . . . . . . . . . . Repair Stations 5 | . . . . . . . 2 . . . . . . . . . . 3 . . . . Recycling Units . | . . . . . . . . . . . . . . . . . . . . . . . Scanalyzers 3 | . . . 3 . . . . . . . . . . . . . . . . . . . Garrison Access 6 | . . . . . . . 1 1 . . . . . . . 2 . . . . . 2 Terminal Hacks 55 | . . . 1 . 24 . 4 1 . . . . 5 . . 5 1 1 . 4 6 3 Record 24 | . . . . . 23 . . . . . . . . . . . . . . . 1 . Prototype ID Bank 4 | . . . 1 . . . 1 . . . . . . . . . . . . . 2 . Open Door 6 | . . . . . . . . . . . . . 5 . . . . . . . . 1 Open DSF 1 | . . . . . . . . . . . . . . . . . . 1 . . . . Level Access Points 4 | . . . . . . . . . . . . . . . . 1 . . . 1 1 1 Branch Access Points 5 | . . . . . . . 1 1 . . . . . . . 1 . . . 1 1 . Alert Level 1 | . . . . . . . . . . . . . . . . . . . . 1 . . Unreport Threat 2 | . . . . . . . . . . . . . . . . . 1 . . 1 . . Locate Traps 2 | . . . . . . . . . . . . . . . . 2 . . . . . . Recall Investigation 1 | . . . . . . . 1 . . . . . . . . . . . . . . . Recall Extermination 1 | . . . . . . . . . . . . . . . . . . . . . . 1 Recall Reinforcements 1 | . . . . . . . . . . . . . . . . . . . . . 1 . Zone Layout 2 | . . . . . . . 1 . . . . . . . . 1 . . . . . . Proto ID Catalog 1 | . . . . . 1 . . . . . . . . . . . . . . . . . Fabricator Hacks 1 | . . . . . . . . . 1 . . . . . . . . . . . . . Network Status 1 | . . . . . . . . . 1 . . . . . . . . . . . . . Repair Station Hacks 2 | . . . . . . . 2 . . . . . . . . . . . . . . . Scan Component 1 | . . . . . . . 1 . . . . . . . . . . . . . . . Repair 1 | . . . . . . . 1 . . . . . . . . . . . . . . . Recycling Unit Hacks . | . . . . . . . . . . . . . . . . . . . . . . . Scanalyzer 3 | . . . 3 . . . . . . . . . . . . . . . . . . . Insert Component 2 | . . . 2 . . . . . . . . . . . . . . . . . . . Analyze 1 | . . . 1 . . . . . . . . . . . . . . . . . . . Garrison Access Hacks 3 | . . . . . . . 1 1 . . . . . . . . . . . . . 1 Seal Access 3 | . . . . . . . 1 1 . . . . . . . . . . . . . 1 Unauthorized Hacks 5 | . . . . . . . 2 1 . . . . 1 . . 1 . . . . . . Terminals 5 | . . . . . . . 2 1 . . . . 1 . . 1 . . . . . . Botnet 5 | . . . . . . . 2 1 . . . . 1 . . 1 . . . . . . Fabricators . | . . . . . . . . . . . . . . . . . . . . . . . Repair Stations . | . . . . . . . . . . . . . . . . . . . . . . . Recycling Units . | . . . . . . . . . . . . . . . . . . . . . . . Scanalyzers . | . . . . . . . . . . . . . . . . . . . . . . . Garrison Access . | . . . . . . . . . . . . . . . . . . . . . . . Data Cores Recovered 1 | . . . . . . . . . . . . 1 . . . . . . . . . . Used . | . . . . . . . . . . . . . . . . . . . . . . . Hacking Detections 36 | . 1 . 2 . . . 4 2 2 . . 2 6 1 . 6 2 2 . 1 3 2 Full Trace Events 2 | . . . . . . . 1 . . . . . . . . 1 . . . . . . Feedback Events . | . . . . . . . . . . . . . . . . . . . . . . . Feedback Blocked . | . . . . . . . . . . . . . . . . . . . . . . . Robot Schematics Acquired . | . . . . . . . . . . . . . . . . . . . . . . . Robots Built . | . . . . . . . . . . . . . . . . . . . . . . . Authchips . | . . . . . . . . . . . . . . . . . . . . . . . Time . | . . . . . . . . . . . . . . . . . . . . . . . Total Robot Build Rating . | . . . . . . . . . . . . . . . . . . . . . . . Part Schematics Acquired 1 | . . . 1 . . . . . . . . . . . . . . . . . . . Parts Built . | . . . . . . . . . . . . . . . . . . . . . . . Authchips . | . . . . . . . . . . . . . . . . . . . . . . . Time . | . . . . . . . . . . . . . . . . . . . . . . . Total Part Build Rating . | . . . . . . . . . . . . . . . . . . . . . . . Parts Repaired 1 | . . . . . . . 1 . . . . . . . . . . . . . . . Time 26 | . . . . . . . 26 . . . . . . . . . . . . . . . Parts Recycled . | . . . . . . . . . . . . . . . . . . . . . . . Recycled Matter . | . . . . . . . . . . . . . . . . . . . . . . . Retrieved Matter . | . . . . . . . . . . . . . . . . . . . . . . . Retrieved Components . | . . . . . . . . . . . . . . . . . . . . . . . Parts Scanalyzed 1 | . . . 1 . . . . . . . . . . . . . . . . . . . Part Schematics Acquired 1 | . . . 1 . . . . . . . . . . . . . . . . . . . Parts Damaged . | . . . . . . . . . . . . . . . . . . . . . . . Bothacking | -11 -10 -10 -9 -9 -9 -8 -8 -7 -6 -6 -6 -5 -5 -5 -5 -5 -4 -3 -3 -2 -2 -1 ------------ Run | Yrd Mat Min Mat Min Exi Min Mat Fac Fac Was Fac Fac Ext Cet Arc Hub Fac Res DSF Res Tes Acc Used RIF Installer . | . . . . . . . . . . . . . . . . . . . . . . . Robots Hacked . | . . . . . . . . . . . . . . . . . . . . . . . Non-combat . | . . . . . . . . . . . . . . . . . . . . . . . Combat . | . . . . . . . . . . . . . . . . . . . . . . . Robot Hacks Applied . | . . . . . . . . . . . . . . . . . . . . . . . Relay Couplers Released 1 | . . . . . . . . . . . . 1 . . . . . . . . . . Machine Destruction 1 | . . . . . . . . . . . . 1 . . . . . . . . . . Fabnet Peak Effective % . | . . . . . . . . . . . . . . . . . . . . . . . Robots Rewired 11 | . . . . . . . . . . . . . 11 . . . . . . . . . Allies Hacked 2 | . . . . . . . . . . . . . . . . 2 . . . . . . Hacks Repelled . | . . . . . . . . . . . . . . . . . . . . . . . Allies | -11 -10 -10 -9 -9 -9 -8 -8 -7 -6 -6 -6 -5 -5 -5 -5 -5 -4 -3 -3 -2 -2 -1 -------- Run | Yrd Mat Min Mat Min Exi Min Mat Fac Fac Was Fac Fac Ext Cet Arc Hub Fac Res DSF Res Tes Acc Total Allies 35 | . . . . 3 . . . . . . . . 23 5 . 4 . . . . . . Largest Group 14 | . . . . 3 3 3 . . . . . . 14 11 9 8 1 1 1 . . . Highest-Rated Group 632 | . . . . 40 37 37 . . . . . . 389 632 593 562 100 97 97 . . . Highest-Rated Ally 159 | . . . . 16 16 16 . . . . . . 159 159 96 142 100 97 97 . . . Total Orders 1 | . . . . . . . . . . . . . . 1 . . . . . . . . STAY 1 | . . . . . . . . . . . . . . 1 . . . . . . . . Ally Attacks 322 | . . . . 2 . 7 . . . . . . 108 69 25 93 13 . 5 . . . Total Damage 8539 | . . . . 13 . 81 . . . . . . 1905 1378 986 3436 616 . 124 . . . Kills 54 | . . . . . . . . . . . . . 14 9 5 20 6 . . . . . Allies Corrupted 1 | . . . . . . . . . . . . . . . . 1 . . . . . . Allies Melted . | . . . . . . . . . . . . . . . . . . . . . . . Field Lobotomies 4 | . . . . . . . . . . . . . . . . 4 . . . . . . Intel | -11 -10 -10 -9 -9 -9 -8 -8 -7 -6 -6 -6 -5 -5 -5 -5 -5 -4 -3 -3 -2 -2 -1 ------- Run | Yrd Mat Min Mat Min Exi Min Mat Fac Fac Was Fac Fac Ext Cet Arc Hub Fac Res DSF Res Tes Acc Active Infowar (turns) 8151 | . . . . . . . 1093 873 240 282 173 1305 1169 463 112 860 640 109 384 113 135 200 Optics 1003 | . . . . . . . . . . . . . . . . . 62 109 384 113 135 200 Sensors 3171 | . . . . . . . . 871 240 115 153 886 . . . . 501 108 74 . 38 185 Structural 3365 | . . . . . . . . 24 240 114 . 333 1169 193 . 477 640 109 66 . . . T.N.C. 7770 | . . . . . . . 1093 873 240 282 173 1305 1169 463 112 860 490 109 384 113 104 . Robot Analysis Total . | . . . . . . . . . . . . . . . . . . . . . . . Derelict Logs Recovered 2 | . . 1 . 1 . . . . . . . . . . . . . . . . . . Drone Launches . | . . . . . . . . . . . . . . . . . . . . . . . Drone Recoveries . | . . . . . . . . . . . . . . . . . . . . . . . Exploration | -11 -10 -10 -9 -9 -9 -8 -8 -7 -6 -6 -6 -5 -5 -5 -5 -5 -4 -3 -3 -2 -2 -1 ------------- Run | Yrd Mat Min Mat Min Exi Min Mat Fac Fac Was Fac Fac Ext Cet Arc Hub Fac Res DSF Res Tes Acc Turns Passed 11110 | 41 509 317 275 701 355 617 1160 873 240 282 173 1305 1169 463 112 936 641 109 384 113 135 200 Spaces Moved 6887 | 27 323 193 114 426 216 373 607 476 144 113 97 671 577 243 61 451 379 70 200 153 348 625 Core 12 | . . . . . . . . . . . . . . . . . . . . . . 12 Treads 4556 | . 207 193 114 426 216 373 607 476 144 113 97 671 95 12 36 451 320 . 5 . . . Legs 342 | 27 116 . . . . . . . . . . . . . . . . . 175 24 . . Wheels 887 | . . . . . . . . . . . . . 482 231 25 . 59 70 20 . . . Hover . | . . . . . . . . . . . . . . . . . . . . . . . Flight 1090 | . . . . . . . . . . . . . . . . . . . . 129 348 613 Fastest Speed 15 | 120 120 160 160 160 160 160 160 160 160 160 160 160 110 110 130 160 150 150 95 27 15 21 Average Speed 134 | 120 146 160 160 160 160 160 160 160 160 200 160 160 151 119 147 160 158 150 106 40 28 29 Slowest Speed 320 | 120 190 160 160 160 160 160 160 160 160 240 160 160 320 160 160 160 160 150 180 100 85 85 Overloaded Moves 103 | . . . . . . . . . . . . . . . . . . . . . 75 28 Propulsion Burnouts . | . . . . . . . . . . . . . . . . . . . . . . . Robots Hopped 20 | . . . . . . . . . . . . . . . . . . . . 2 8 10 Potential Cave-ins 2 | . . . . . . . . . . . 2 . . . . . . . . . . . Cave-ins Triggered . | . . . . . . . . . . . . . . . . . . . . . . . Exploration Rate (%) 43 | 3 48 52 22 94 59 83 46 14 7 77 4 27 75 56 71 68 12 3 92 10 58 26 Regions Visited 22 Branch Regions 9 Pre-discovered Areas 1 | . . . . . 1 . . . . . . . . . . . . . . . . . Known Exits Taken 6 | . . . . . . . . 1 . . 1 . . . . 1 . 1 . 1 1 . Unknown Exits Taken 13 | 1 1 1 1 1 1 1 1 . . . . 1 1 1 1 . 1 . . . . . Scrap Searched 1 | . . . . 1 . . . . . . . . . . . . . . . . . . Spaces Dug 11 | . . . . . . . . 1 . . 3 1 . . . 2 1 . . 2 1 . Terrain Destroyed 195 | . . 6 . 29 . . 17 2 . 8 6 78 19 5 3 17 1 . . 2 2 . Melee . | . . . . . . . . . . . . . . . . . . . . . . . Projectile 79 | . . . . . . . . 2 . 3 6 19 19 5 3 17 1 . . 2 2 . AOE 116 | . . 6 . 29 . . 17 . . 5 . 59 . . . . . . . . . . Terrain Rammed . | . . . . . . . . . . . . . . . . . . . . . . . Walls Destroyed . | . . . . . . . . . . . . . . . . . . . . . . . Machines Disabled . | . . . . . . . . . . . . . . . . . . . . . . . Actions | -11 -10 -10 -9 -9 -9 -8 -8 -7 -6 -6 -6 -5 -5 -5 -5 -5 -4 -3 -3 -2 -2 -1 --------- Run | Yrd Mat Min Mat Min Exi Min Mat Fac Fac Was Fac Fac Ext Cet Arc Hub Fac Res DSF Res Tes Acc Total 8165 | 36 358 195 162 439 227 382 727 541 153 161 108 795 781 406 76 576 413 75 351 203 370 630 Wait 461 | 6 1 . 22 . . 1 43 19 . 13 . 39 24 124 3 34 8 2 86 27 5 4 Move 6826 | 26 322 192 113 425 215 372 606 475 144 112 96 670 576 242 60 450 378 69 199 148 332 604 Hop 19 | . . . . . . . . . . . . . . . . . . . . 2 7 10 Pick Up 69 | . 8 . . 1 5 . 9 4 1 5 1 3 5 4 1 3 1 . 15 . . 3 Fast Attach 82 | 1 4 . . 4 . 2 5 3 2 3 . 12 6 10 3 2 5 . 10 3 7 . Attach 52 | 1 2 . 1 . . . 2 2 2 1 2 5 4 1 . 6 7 3 1 8 4 . Detach 40 | 1 2 . . 2 . . . . 1 2 . 6 . 2 . 1 7 1 . 9 5 1 Swap 46 | . 3 . 1 1 2 1 6 9 1 1 1 2 7 1 . 9 1 . . . . . Drop 130 | 1 12 . . 2 5 1 14 8 1 13 1 7 12 14 3 5 . . 19 4 3 5 Fire 299 | . 4 3 13 4 . 5 42 21 1 11 7 51 35 8 6 63 4 . 12 2 7 . Melee 11 | . . . 11 . . . . . . . . . . . . . . . . . . . Ram 5 | . . . . . . . . . . . . . 2 . . . . . . . . 3 Kick . | . . . . . . . . . . . . . . . . . . . . . . . Crush 3 | . . . 1 . . . . . . . . . . . . . 2 . . . . . Escape Stasis 26 | . . . . . . . . . . . . . 26 . . . . . . . . . Rewire 59 | . . . . . . . . . . . . . 59 . . . . . . . . . Trap 9 | . . . . . . . . . . . . . . . . . . . 9 . . . Miscellaneous 28 | . . . . . . . . . . . . . 25 . . 3 . . . . . . Route ------- -11/Scrapyard -10/Materials (discovered 2 exits: *Mat / [*Min]) -10/Mines -9/Materials -9/Mines (discovered 2 exits: *Mat / *Exi) -9/Exiles -8/Mines -8/Materials -7/Factory (discovered 3 exits: *Fac / Low x2) -6/Factory -6/Waste -6/Factory -5/Factory -5/Extension (discovered 2 exits: *Fac / *Cet) -5/Cetus (discovered 2 exits: *Fac / [*Arc]) -5/Archives (discovered 2 exits: *Fac / *Hub) -5/Hub_04(d) (discovered 4 exits: *Fac x4) -4/Factory -3/Research -3/DSF -2/Research (discovered 5 exits: Acc x3 / *Tes x2) -2/Testing -1/Access To Epsilon Eridani History --------- Turn | Location | Event 1 | -11/Scrapyard | Discovered new exit (range 3) 42 | -11/Scrapyard | Entered Materials 304 | -10/Materials | Build established: Mutant 508 | -10/Materials | Discovered new exit (range 4) 527 | -10/Materials | Discovered new exit (range 16) 551 | -10/Materials | Entered Mines 558 | -10/Mines | Met a Derelict bent on vengeance 610 | -10/Mines | Assembled infested the area 615 | -10/Mines | Assisted by a Guerilla fighting off Assembled 639 | -10/Mines | Learned 2 Materials zone layouts 721 | -10/Mines | Discovered new exit (range 14) 868 | -10/Mines | Entered Materials 868 | -9/Materials | Evolved 2 slots: Utility x2 1133 | -9/Materials | Discovered new exit (range 7) 1143 | -9/Materials | Entered Mines 1192 | -9/Mines | Deemed a non-threat by the Exiles lab entrance 1192 | -9/Mines | Discovered new exit (range 5) 1258 | -9/Mines | Received a Rocket Launcher from a helpful Derelict 1614 | -9/Mines | Discovered new exit (range 9) 1645 | -9/Mines | Learned Materials trap positions 1657 | -9/Mines | Assisted by bots powering up and referring to "LRC-V3" 1844 | -9/Mines | Entered Exiles 1844 | -9/Exiles | Accompanied by 3 allies 1888 | -9/Exiles | Met 8R-AWN 1914 | -9/Exiles | Met EX-HEX 1959 | -9/Exiles | Met EX-BIN 1981 | -9/Exiles | Aligned with FarCom system 1983 | -9/Exiles | Given EX-Vault access code 2021 | -9/Exiles | Opened EX-Vault 2033 | -9/Exiles | Found Modified TNC 2040 | -9/Exiles | Found Firepult 2046 | -9/Exiles | Found Field Lobotomy Kit 2079 | -9/Exiles | Warned to stay clear of 0b10 Research branches 2093 | -9/Exiles | Exiles lab attacked by MAIN.C 2137 | -9/Exiles | Learned location of Zion (-6) 2186 | -9/Exiles | Discovered new exit (range 10) 2199 | -9/Exiles | Stole three prototypes: Modified TNC, Firepult, Field Lobotomy Kit 2199 | -9/Exiles | Entered Mines 2199 | -8/Mines | Accompanied by 3 allies 2238 | -8/Mines | Lost 3 allies 2724 | -8/Mines | Discovered new exit (range 10) 2783 | -8/Mines | Found a Scrap Suit stashed away for nefarious purposes 2816 | -8/Mines | Entered Materials 2816 | -8/Materials | Evolved 2 slots: Propulsion x1, Weapon x1 2817 | -8/Materials | Loaded intel: 23 trap records 2939 | -8/Materials | Repaired Lgt. Treads 3159 | -8/Materials | Build established: Skirmisher 3834 | -8/Materials | Discovered new exit (range 13) 3976 | -8/Materials | Entered Factory 3976 | -7/Factory | Evolved 2 slots: Utility x2 3978 | -7/Factory | FarCom data flow suspended 4345 | -7/Factory | Identified exit to Lower Caves 4843 | -7/Factory | Discovered new exit (range 4) 4848 | -7/Factory | Identified exit to Factory 4849 | -7/Factory | Entered another Factory area 4849 | -6/Factory | Evolved 2 slots: Utility x2 5089 | -6/Factory | Sucked down chute 5089 | -6/Factory | Entered Waste 5104 | -6/Waste | EMP discharged 5141 | -6/Waste | Spotted C-40 Crusher 5147 | -6/Waste | Spotted C-40 Crusher 5149 | -6/Waste | Destroyed C-40 Crusher 5163 | -6/Waste | Spotted C-40 Crusher 5163 | -6/Waste | Destroyed C-40 Crusher 5183 | -6/Waste | Spotted C-40 Crusher 5187 | -6/Waste | Destroyed C-40 Crusher 5189 | -6/Waste | Destroyed C-40 Crusher 5204 | -6/Waste | EMP discharged 5204 | -6/Waste | System corruption reached 10% 5210 | -6/Waste | Found Damper Plating 5214 | -6/Waste | Spotted C-40 Crusher 5217 | -6/Waste | Destroyed C-40 Crusher 5284 | -6/Waste | Spotted C-40 Crusher 5297 | -6/Waste | Destroyed C-40 Crusher 5304 | -6/Waste | EMP discharged 5345 | -6/Waste | Discovered new exit (range 12) 5369 | -6/Waste | Identified exit to Factory 5371 | -6/Waste | Entered Factory 5522 | -6/Factory | Discovered new exit (range 15) 5542 | -6/Factory | Identified exit to Factory 5544 | -6/Factory | Entered another Factory area 5544 | -5/Factory | Evolved 2 slots: Propulsion x1, Utility x1 5874 | -5/Factory | Garrison activated, responded to threat 5902 | -5/Factory | Build established: Tank 6103 | -5/Factory | Garrison activated, responded to threat 6801 | -5/Factory | Build established: Scavenger-Tank 6834 | -5/Factory | Discovered new exit (range 10) 6849 | -5/Factory | Entered Extension 7035 | -5/Extension | Rescued a captive Derelict 7040 | -5/Extension | Rescued a captive Derelict 7167 | -5/Extension | Rescued a captive Derelict 7168 | -5/Extension | Rescued a captive Derelict 7322 | -5/Extension | Lost 4 allies 7340 | -5/Extension | Rescued a captive Derelict 7341 | -5/Extension | Rescued a captive Derelict 7382 | -5/Extension | Build established: Commander-Tank 7391 | -5/Extension | Spotted B-75 Beast 7454 | -5/Extension | Allies destroyed B-75 Beast 7464 | -5/Extension | Lost 5 allies 7472 | -5/Extension | Spotted B-75 Beast 7474 | -5/Extension | Destroyed B-75 Beast 7565 | -5/Extension | Rescued a captive Derelict 7565 | -5/Extension | Rescued a captive Derelict 7603 | -5/Extension | Rescued a captive Derelict 7706 | -5/Extension | Rescued a captive Derelict 7710 | -5/Extension | Rescued a captive Derelict 7713 | -5/Extension | Build established: Commander-Gunner 7768 | -5/Extension | Lost 4 allies 7833 | -5/Extension | Rescued a captive Derelict 7836 | -5/Extension | Rescued A7 7969 | -5/Extension | Discovered new exit (range 10) 7970 | -5/Extension | Discovered new exit (range 6) 8018 | -5/Extension | Disrupted transfer network 8018 | -5/Extension | Entered Cetus 8018 | -5/Cetus | Accompanied by 9 allies (A7) 8023 | -5/Cetus | Acquired a Cetus Manufacturing Module code from A7 8027 | -5/Cetus | Build established: Scavenger-Gunner 8032 | -5/Cetus | Spotted Cetus Guard 8033 | -5/Cetus | Spotted Cetus Guard 8039 | -5/Cetus | Spotted Cetus Guard 8044 | -5/Cetus | Spotted Cetus Guard 8049 | -5/Cetus | Allies destroyed Cetus Guard 8060 | -5/Cetus | Allies destroyed Cetus Guard 8061 | -5/Cetus | Destroyed Cetus Guard 8062 | -5/Cetus | Allies destroyed Cetus Guard 8134 | -5/Cetus | Discovered new exit (range 15) 8154 | -5/Cetus | Spotted Cetus Guard 8154 | -5/Cetus | Spotted Cetus Guard 8167 | -5/Cetus | Spotted Cetus Guard 8168 | -5/Cetus | Spotted Cetus Guard 8169 | -5/Cetus | Allies destroyed Cetus Guard 8195 | -5/Cetus | Allies destroyed Cetus Guard 8202 | -5/Cetus | Discovered new exit (range 16) 8208 | -5/Cetus | Met Revision 17 8298 | -5/Cetus | Started Cetus Manufacturing Module 8323 | -5/Cetus | Manufactured an Enhanced Grunt 8326 | -5/Cetus | Murdered A7 8329 | -5/Cetus | Extracted ID and sensor layout for unrecognized location from A7's data core 8340 | -5/Cetus | Found Prototype Protection 8340 | -5/Cetus | Identified Med. Regenerative Plating 8348 | -5/Cetus | Manufactured an Enhanced Grunt 8373 | -5/Cetus | Manufactured an Enhanced Grunt 8398 | -5/Cetus | Manufactured an Enhanced Grunt 8423 | -5/Cetus | Manufactured an Enhanced Grunt 8481 | -5/Cetus | Entered Archives 8481 | -5/Archives | Accompanied by 10 allies 8513 | -5/Archives | Build established: Scavenger-Tank 8523 | -5/Archives | Discovered new exit (range 14) 8550 | -5/Archives | Discovered new exit (range 15) 8593 | -5/Archives | Entered Hub_04(d) 8593 | -5/Hub_04(d) | Accompanied by 8 allies 8639 | -5/Hub_04(d) | Garrison activated, responded to threat 8948 | -5/Hub_04(d) | Garrison activated, responded to threat 8953 | -5/Hub_04(d) | Lost 3 allies 8984 | -5/Hub_04(d) | Discovered new exit (range 16) 9013 | -5/Hub_04(d) | Destroyed 13 combat bots 9138 | -5/Hub_04(d) | Destroyed 7 combat bots 9185 | -5/Hub_04(d) | Identified exit to Factory 9252 | -5/Hub_04(d) | Assimilated H-71 Marshal with FLK Orb 9385 | -5/Hub_04(d) | Assimilated H-71 Marshal with FLK Orb 9416 | -5/Hub_04(d) | Network Hub disabled 9424 | -5/Hub_04(d) | Spotted Lightning 9427 | -5/Hub_04(d) | System corruption reached 10% 9431 | -5/Hub_04(d) | Spotted Lightning 9434 | -5/Hub_04(d) | Spotted Lightning 9440 | -5/Hub_04(d) | Destroyed Lightning 9441 | -5/Hub_04(d) | Destroyed Lightning 9451 | -5/Hub_04(d) | Destroyed Lightning 9463 | -5/Hub_04(d) | Spotted Lightning 9465 | -5/Hub_04(d) | Spotted Lightning 9466 | -5/Hub_04(d) | Spotted Lightning 9469 | -5/Hub_04(d) | Core integrity fell below 50% 9474 | -5/Hub_04(d) | Destroyed Lightning 9477 | -5/Hub_04(d) | Assimilated Lightning with FLK Orb 9483 | -5/Hub_04(d) | Assimilated Lightning with FLK Orb 9493 | -5/Hub_04(d) | First assault squad dispatched 9509 | -5/Hub_04(d) | Lost 5 parts (2n2u1w) 9525 | -5/Hub_04(d) | Spotted Lightning 9525 | -5/Hub_04(d) | Spotted Lightning 9527 | -5/Hub_04(d) | System corruption reached 30% 9529 | -5/Hub_04(d) | Entered Factory 9529 | -4/Factory | Accompanied by 1 ally 9529 | -4/Factory | Evolved 2 slots: Utility x2 10029 | -4/Factory | First assault squad dispatched 10046 | -4/Factory | Garrison activated, responded to threat 10131 | -4/Factory | Discovered new exit (range 13) 10164 | -4/Factory | Garrison activated, responded to threat 10170 | -4/Factory | Entered Research 10170 | -3/Research | Accompanied by 1 ally 10170 | -3/Research | Evolved 2 slots: Utility x2 10277 | -3/Research | Identified exit to DSF 10279 | -3/Research | Entered DSF 10279 | -3/DSF | Accompanied by 1 ally 10318 | -3/DSF | Additional patrols routed to DSF 10388 | -3/DSF | Lost 6 parts (1p4u1w) 10648 | -3/DSF | Discovered new exit (range 14) 10663 | -3/DSF | Entered Research 10663 | -2/Research | Evolved 2 slots: Propulsion x1, Utility x1 10678 | -2/Research | Identified exit to Testing 10678 | -2/Research | Identified exit to Access 10694 | -2/Research | Lost 4 parts (3u1w) 10776 | -2/Research | Entered Testing 10807 | -2/Testing | Found Prototype Energy Cannon 10807 | -2/Testing | Identified Null Cannon 10813 | -2/Testing | Protovariant out of control (PL-KZ8S7YY3ER) 10857 | -2/Testing | Found Prototype Energy Gun 10857 | -2/Testing | Identified Hyp. EM Gauss Rifle 10911 | -2/Testing | Lost 3 parts (1n2u) 10911 | -2/Testing | Entered Access 10911 | -1/Access | Evolved 2 slots: Power x1, Propulsion x1 11057 | -1/Access | Identified exit to Surface 11111 | *** | Escaped! Last Messages --------------- 11059_ System corrupted (+4). 11062_ U-05 Engineer lays Concrete. 11068_ Dropped Imp. Fusion Compressor. 11069_ Acquired Quantum Reactor. 11075_ &|4EGHY12H/G8C%NWE: 238FEDBXVHZQSVWBOVM 11075_ Dropped Quantum Reactor. 11076_ Acquired Lgt. Quantum Reactor. 11081_ Slammed into K-01 Serf. 11081_ K-01 Serf knocked back. 11082_ Slammed into K-01 Serf. 11090_ Penetrated by Slug. 11090_ Slug penetrates Wall. 11092_ System corrupted: Energy discharge (-27). 11096_ Penetrated by Slug. 11096_ Adv. Sensor Array destroyed. 11096_ Slug penetrates Wall. 11108_ Connecting with Terminal... >>Open(Door) Sealed Barrier opened. 11109_ The Access Shell folds into the floor. Map ----- +----------------------------------------------------+ | ?????????????????????????????????# ?????????? | | ?????????????????????????????????# ?????????? | | ?????????????????????????????????# ??????????? | | ?????????????????????????????????# ??????????? | | ?????????????????????????????????# ??????????? | | ?????????????????????????????????# ??????????? | | ?????????????????????????????????# ???????????? | | ?????????????????????????????????# ???????????? | | ?????????????????????????????????? ???????????? | | ??????????????????????????????????? ???????????? | | ????????+###########################+####????????? | | ??????? #????????? | | ??????? #????????? | | ?????????????????#### ""####### #????????? | | ????????????????????# ""#?????# #????????? | | ????????????????????# ""#?????# #????????? | | ????????????????????# T#?????# #????????? | | ????????????????????# ""#?????# #????????? | | ????????????????????# ""#?????# #????????? | | ???????????????????## ""##????# #????????? | | ???????????????????# #????# #????????? | | ???????????????????## ##????# #????????? | | ????????????????????# #?????# #????????? | | ????????????????????# #?????# #????????? | | ????????????????????# #?????# #??####### | | ????????????????????# @" #?????# #?? | | ????????????????????# "" #?????# #? | | ????????????????????# #?????# #? | | ????????????????????# #?????# # | | ????????????????????# #?????# # | | ????????????????????#""""""""""#?????# + | | ?????????????????????????????????????# ########## | | ?????????????????????????????????????# #???###### | | ?????????????????????????????????????# #???! | | ?????????????????????????????????????# #?? | | ?????????????????????????????????????# #?? | | ?????????????????????????????????????# #? " | | ?????????????????????????????????????# #? """ | | ?????????????????????????????????????# # """ | | ?????????????????????????????????????# # " | | ?????????????????????????????????????# + | | ?????????????????????????????????????# # | | ?????????????????????????????????????# # | | ?????????????????????????????????????# #? """ """ | | ?????????????????????????????????????# #? """T""" | | ?????????????????????????????????????# #??####### | | ?????????????????????????????????????# #????????? | | ????????????????????????????????????## ##???????? | | ????????????????????????????????????# ######### | | ????????????????????????????????????# | +----------------------------------------------------+ Best States ------------- Heat Dissipation 124 Energy Generation 35 Energy Capacity 465 Matter Stores 300 Matter Capacity 300 Sight Range 23 Robot Scan Range 18 Terrain Scan Density 10 Power Amplification 30 Additional Mass Support 9 Base Temperature (-) 100 Armor Coverage 1600 Resistance: EM 90 Evasion (%) 65 Targeting Accuracy 8 Target Analysis 6 Recoil Reduction 4 Offensive Hacking 70 Item Schematics ----------------- Lrg. Battery | -9/Materials | Scanalyzed Robot Schematics ------------------ None Fabricated ------------ Nothing Repaired ---------- Lgt. Treads | 32% | -8/Materials Alien Tech Used ----------------- None Achievements -------------- Pyromaniac Challenges ------------ None Game ------ Seed MetafiberCommArachnoskeleton Manual? 0 Play Time 02:03:49 Cumulative 282.7 hours Start 2025.05.20 @ 14:41:11 End 2025.05.20 @ 16:49:18 Sessions 3 Manual Loads 0 Difficulty Rogue Special Mode None Game No. 198 Rogue 198 Adventurer 0 Explorer 0 Win Type 0 Total 22 Types 18/0/2/2/0/0/0/0/0/0 Lore% 85 Gallery% 72 Achievement% 64 Wizard Run 0 Options --------- Layout 2 ASCII 0 Keyboard 1 Movement Arrows Keybinds 0 Fullscreen 1 Font 24/Smallcaps Map View 50x44 Zoom Use 0% Tactical HUD 1 Map Filters NONE Filters NONE Steam 1 RUN: 536b6dfc-0822-4166-bc42-dad4651283e6